[Event "*** SCC Grand Prix: Titled Tuesday Blitz"]
[Site "Chess.com"]
[Date "2020.08.04"]
[Round "7"]
[White "Klavdia_Nik"]
[Black "Roza_Idrisova"]
[Result "0-1"]
[WhiteElo "2009"]
[BlackElo "2239"]
[TimeControl "180+1"]
[EndTime "15:01:40 PDT"]
[Termination "Roza_Idrisova won by checkmate"]

1. Nf3 {[%clk 0:03:00.9]} 1... d5 {[%clk 0:02:58.9]} 2. c4 {[%clk 0:02:44.6]}
2... c6 {[%clk 0:02:58.6]} 3. b3 {[%clk 0:02:44.6]} 3... Bf5 {[%clk 0:02:57.4]}
4. Bb2 {[%clk 0:02:44.8]} 4... e6 {[%clk 0:02:57.6]} 5. g3 {[%clk 0:02:45.3]}
5... Nf6 {[%clk 0:02:57.2]} 6. Bg2 {[%clk 0:02:45.9]} 6... Be7 {[%clk
0:02:57.3]} 7. O-O {[%clk 0:02:46.4]} 7... O-O {[%clk 0:02:57.1]} 8. d3 {[%clk
0:02:46.5]} 8... h6 {[%clk 0:02:57.2]} 9. Nbd2 {[%clk 0:02:46.7]} 9... a5 {[%clk
0:02:57.3]} 10. a3 {[%clk 0:02:41.3]} 10... Na6 {[%clk 0:02:56.2]} 11. Qc2
{[%clk 0:02:29.5]} 11... Re8 {[%clk 0:02:55.3]} 12. Ne5 {[%clk 0:02:23.2]} 12...
Nd7 {[%clk 0:02:51.2]} 13. e4 {[%clk 0:02:18.4]} 13... dxe4 {[%clk 0:02:47.8]}
14. dxe4 {[%clk 0:02:18.6]} 14... Bh7 {[%clk 0:02:46.7]} 15. f4 {[%clk
0:02:11.2]} 15... Nxe5 {[%clk 0:02:45]} 16. Bxe5 {[%clk 0:02:03.9]} 16... Bf6
{[%clk 0:02:44.6]} 17. Nf3 {[%clk 0:01:59.9]} 17... Bxe5 {[%clk 0:02:41.2]} 18.
Nxe5 {[%clk 0:02:00.3]} 18... f6 {[%clk 0:02:40.8]} 19. Nf3 {[%clk 0:01:56.2]}
19... Qc7 {[%clk 0:02:38.1]} 20. c5 {[%clk 0:01:50.7]} 20... Rad8 {[%clk
0:02:37.1]} 21. Rad1 {[%clk 0:01:50.4]} 21... e5 {[%clk 0:02:31.2]} 22. f5
{[%clk 0:01:40.7]} 22... Kh8 {[%clk 0:02:30.3]} 23. Nh4 {[%clk 0:01:40.1]} 23...
Bg8 {[%clk 0:02:29]} 24. Ng6+ {[%clk 0:01:38.5]} 24... Kh7 {[%clk 0:02:28.4]}
25. Bf3 {[%clk 0:01:36.9]} 25... Bf7 {[%clk 0:02:28]} 26. Nh4 {[%clk 0:01:33.5]}
26... Qe7 {[%clk 0:02:21.8]} 27. Ng6 {[%clk 0:01:12.2]} 27... Qxc5+ {[%clk
0:02:15.9]} 28. Qxc5 {[%clk 0:01:05.3]} 28... Nxc5 {[%clk 0:02:15.5]} 29. b4
{[%clk 0:01:01.3]} 29... axb4 {[%clk 0:02:15.2]} 30. axb4 {[%clk 0:01:01.4]}
30... Nd3 {[%clk 0:02:08.7]} 31. b5 {[%clk 0:00:56.4]} 31... cxb5 {[%clk
0:01:59.9]} 32. Be2 {[%clk 0:00:56.2]} 32... Nc5 {[%clk 0:01:54.1]} 33. Bxb5
{[%clk 0:00:52.3]} 33... Rxd1 {[%clk 0:01:50.8]} 34. Rxd1 {[%clk 0:00:50.3]}
34... Rc8 {[%clk 0:01:46.6]} 35. Ne7 {[%clk 0:00:35.6]} 35... Ra8 {[%clk
0:01:36.3]} 36. Re1 {[%clk 0:00:23]} 36... Ra5 {[%clk 0:01:28.2]} 37. Bf1 {[%clk
0:00:20.2]} 37... Ra4 {[%clk 0:01:20.7]} 38. Bg2 {[%clk 0:00:19.6]} 38... Rb4
{[%clk 0:01:17.4]} 39. Nd5 {[%clk 0:00:19.6]} 39... Rb2 {[%clk 0:01:14.2]} 40.
h4 {[%clk 0:00:17.5]} 40... h5 {[%clk 0:01:11.4]} 41. Rc1 {[%clk 0:00:17.5]}
41... b6 {[%clk 0:01:10.2]} 42. Bf3 {[%clk 0:00:15.5]} 42... Kh6 {[%clk
0:01:06.8]} 43. Rc3 {[%clk 0:00:14.5]} 43... g6 {[%clk 0:01:02.8]} 44. Nxb6
{[%clk 0:00:11.6]} 44... gxf5 {[%clk 0:00:57.1]} 45. exf5 {[%clk 0:00:10.4]}
45... Rxb6 {[%clk 0:00:50.8]} 46. Rxc5 {[%clk 0:00:09.7]} 46... Be8 {[%clk
0:00:48.8]} 47. Kf2 {[%clk 0:00:09.2]} 47... Bb5 {[%clk 0:00:46]} 48. Ke3 {[%clk
0:00:08.4]} 48... Bf1 {[%clk 0:00:43.5]} 49. Be4 {[%clk 0:00:07.2]} 49... Rd6
{[%clk 0:00:40.6]} 50. Rb5 {[%clk 0:00:05.5]} 50... Bh3 {[%clk 0:00:38.1]} 51.
Ra5 {[%clk 0:00:04.8]} 51... Bg4 {[%clk 0:00:37.3]} 52. Ra8 {[%clk 0:00:04.2]}
52... Rb6 {[%clk 0:00:34.8]} 53. Rf8 {[%clk 0:00:03.2]} 53... Kg7 {[%clk
0:00:33.9]} 54. Rd8 {[%clk 0:00:03]} 54... Rb2 {[%clk 0:00:32.6]} 55. Rd3 {[%clk
0:00:02.6]} 55... Re2# {[%clk 0:00:30.7]} 0-1

[Event "*** SCC Grand Prix: Titled Tuesday Blitz"]
[Site "Chess.com"]
[Date "2020.08.04"]
[Round "7"]
[White "Alexander_Moskalenko"]
[Black "Infernal_XaM"]
[Result "1-0"]
[WhiteElo "2830"]
[BlackElo "2913"]
[TimeControl "180+1"]
[EndTime "15:01:51 PDT"]
[Termination "Alexander_Moskalenko won by resignation"]

1. c4 {[%clk 0:03:00.9]} 1... Nf6 {[%clk 0:02:59.7]} 2. Nc3 {[%clk 0:03:00.5]}
2... e5 {[%clk 0:02:59.6]} 3. Nf3 {[%clk 0:03:00.4]} 3... Nc6 {[%clk 0:02:59.4]}
4. d3 {[%clk 0:03:00.9]} 4... d5 {[%clk 0:02:54.6]} 5. cxd5 {[%clk 0:03:01.8]}
5... Nxd5 {[%clk 0:02:55.1]} 6. Bd2 {[%clk 0:03:01.9]} 6... Be7 {[%clk
0:02:52.7]} 7. a3 {[%clk 0:02:59.9]} 7... a5 {[%clk 0:02:49.4]} 8. e3 {[%clk
0:03:00.3]} 8... Be6 {[%clk 0:02:48.3]} 9. Be2 {[%clk 0:03:00.6]} 9... O-O
{[%clk 0:02:47.7]} 10. O-O {[%clk 0:03:01.2]} 10... Nb6 {[%clk 0:02:45.8]} 11.
b3 {[%clk 0:03:00.6]} 11... f5 {[%clk 0:02:45.5]} 12. Qc2 {[%clk 0:03:00.8]}
12... Kh8 {[%clk 0:02:44.5]} 13. Bc1 {[%clk 0:02:53.9]} 13... Nd7 {[%clk
0:02:37.1]} 14. Nd2 {[%clk 0:02:52.6]} 14... Nc5 {[%clk 0:02:25.5]} 15. Rb1
{[%clk 0:02:46.9]} 15... Bg8 {[%clk 0:02:05]} 16. Rd1 {[%clk 0:02:42]} 16... Ne6
{[%clk 0:01:57.6]} 17. Bf3 {[%clk 0:02:21.5]} 17... Ra6 {[%clk 0:01:28.7]} 18.
Nc4 {[%clk 0:02:19.3]} 18... Bf6 {[%clk 0:01:06.9]} 19. b4 {[%clk 0:02:18.7]}
19... axb4 {[%clk 0:00:55.6]} 20. axb4 {[%clk 0:02:19.6]} 20... Ra8 {[%clk
0:00:39.4]} 21. b5 {[%clk 0:01:53]} 21... Ncd4 {[%clk 0:00:36.6]} 22. exd4
{[%clk 0:01:53.3]} 22... Nxd4 {[%clk 0:00:37.5]} 23. Qd2 {[%clk 0:01:44.2]}
23... Nxf3+ {[%clk 0:00:36.6]} 24. gxf3 {[%clk 0:01:44.1]} 24... Qe8 {[%clk
0:00:36.4]} 25. Bb2 {[%clk 0:01:13.4]} 25... Qh5 {[%clk 0:00:35.8]} 26. Qe2
{[%clk 0:01:12.2]} 26... Rad8 {[%clk 0:00:35.7]} 27. Nxe5 {[%clk 0:01:01.8]}
27... Rd4 {[%clk 0:00:33.9]} 28. f4 {[%clk 0:00:59.6]} 28... Qh4 {[%clk
0:00:33.8]} 29. Ne4 {[%clk 0:00:49]} 29... Ra4 {[%clk 0:00:16.3]} 30. Nxf6
{[%clk 0:00:44]} 30... Rxf6 {[%clk 0:00:16]} 31. Qe3 {[%clk 0:00:28.2]} 31...
Rxf4 {[%clk 0:00:14.6]} 32. Qg3 {[%clk 0:00:28.8]} 32... Qh6 {[%clk 0:00:14.2]}
33. Bc1 {[%clk 0:00:27.1]} 33... g5 {[%clk 0:00:10.3]} 34. Bxf4 {[%clk
0:00:26.9]} 34... gxf4 {[%clk 0:00:11.2]} 35. Qg2 {[%clk 0:00:26]} 35... Qh4
{[%clk 0:00:07.8]} 36. f3 {[%clk 0:00:24.9]} 36... Rh6 {[%clk 0:00:07.5]} 37. d4
{[%clk 0:00:24.8]} 37... Bd5 {[%clk 0:00:07.6]} 38. Rbc1 {[%clk 0:00:24.4]}
38... Rh5 {[%clk 0:00:07.3]} 39. Kh1 {[%clk 0:00:16]} 39... Rg5 {[%clk
0:00:07.5]} 40. Qe2 {[%clk 0:00:15.8]} 40... Rg3 {[%clk 0:00:05.7]} 41. Rg1
{[%clk 0:00:15.4]} 41... Qh3 {[%clk 0:00:05.7]} 42. Rxg3 {[%clk 0:00:13.7]}
42... fxg3 {[%clk 0:00:06.6]} 43. Qg2 {[%clk 0:00:14]} 43... Qh6 {[%clk
0:00:06.3]} 44. Rg1 {[%clk 0:00:13.2]} 44... f4 {[%clk 0:00:06.5]} 45. Rc1
{[%clk 0:00:08.7]} 45... Qb6 {[%clk 0:00:03.4]} 46. Qd2 {[%clk 0:00:08.6]} 46...
Qxb5 {[%clk 0:00:02.3]} 47. Qxf4 {[%clk 0:00:07.7]} 47... g2+ {[%clk 0:00:01.5]}
48. Kxg2 {[%clk 0:00:07.1]} 48... Qb2+ {[%clk 0:00:01.9]} 49. Kg3 {[%clk
0:00:07.6]} 49... Kg7 {[%clk 0:00:02.5]} 1-0

[Event "*** SCC Grand Prix: Titled Tuesday Blitz"]
[Site "Chess.com"]
[Date "2020.08.04"]
[Round "7"]
[White "Chesswizard_2007"]
[Black "Ole83"]
[Result "0-1"]
[WhiteElo "2496"]
[BlackElo "2343"]
[TimeControl "180+1"]
[EndTime "15:01:56 PDT"]
[Termination "Ole83 won by checkmate"]

1. Nf3 {[%clk 0:03:00.9]} 1... g6 {[%clk 0:02:56.5]} 2. h4 {[%clk 0:02:51.5]}
2... Nf6 {[%clk 0:02:55.4]} 3. h5 {[%clk 0:02:49]} 3... Nxh5 {[%clk 0:02:54]} 4.
e4 {[%clk 0:02:49.1]} 4... d6 {[%clk 0:02:52.2]} 5. d4 {[%clk 0:02:48.1]} 5...
Bg4 {[%clk 0:02:50.9]} 6. Nc3 {[%clk 0:02:47.5]} 6... Bg7 {[%clk 0:02:48.6]} 7.
Be3 {[%clk 0:02:45.1]} 7... Nc6 {[%clk 0:02:43.1]} 8. Qd2 {[%clk 0:02:42.5]}
8... Nf6 {[%clk 0:02:41.7]} 9. O-O-O {[%clk 0:02:40.7]} 9... h5 {[%clk
0:02:41.1]} 10. Be2 {[%clk 0:02:34.2]} 10... Bxf3 {[%clk 0:02:37.4]} 11. Bxf3
{[%clk 0:02:33.7]} 11... e5 {[%clk 0:02:37.3]} 12. dxe5 {[%clk 0:02:26.1]} 12...
Nxe5 {[%clk 0:02:36.9]} 13. Be2 {[%clk 0:02:25.8]} 13... Qd7 {[%clk 0:02:25.7]}
14. f4 {[%clk 0:02:11.7]} 14... Neg4 {[%clk 0:02:24.6]} 15. Bd4 {[%clk
0:02:10.3]} 15... O-O {[%clk 0:02:04.6]} 16. Kb1 {[%clk 0:01:39.2]} 16... Rfe8
{[%clk 0:01:41.9]} 17. Bf3 {[%clk 0:01:36.7]} 17... Re7 {[%clk 0:01:27.8]} 18.
Rhe1 {[%clk 0:01:23.4]} 18... Rae8 {[%clk 0:01:24.8]} 19. Qc1 {[%clk 0:01:15.2]}
19... Qc8 {[%clk 0:01:09.2]} 20. Rd3 {[%clk 0:00:56.9]} 20... b5 {[%clk
0:00:57.1]} 21. Nxb5 {[%clk 0:00:53.2]} 21... Nxe4 {[%clk 0:00:43.6]} 22. Nxa7
{[%clk 0:00:49.3]} 22... Qd7 {[%clk 0:00:30.7]} 23. Bxg7 {[%clk 0:00:36.5]}
23... Kxg7 {[%clk 0:00:28.8]} 24. Bxe4 {[%clk 0:00:35.6]} 24... Rxe4 {[%clk
0:00:27.8]} 25. Rxe4 {[%clk 0:00:28.7]} 25... Rxe4 {[%clk 0:00:26.9]} 26. Ra3
{[%clk 0:00:19.3]} 26... Qe8 {[%clk 0:00:18.4]} 27. Rd3 {[%clk 0:00:14.7]} 27...
Ra4 {[%clk 0:00:16.6]} 28. b3 {[%clk 0:00:14]} 28... Rxa7 {[%clk 0:00:16.2]} 29.
Qg1 {[%clk 0:00:13.5]} 29... Rb7 {[%clk 0:00:14.9]} 30. f5 {[%clk 0:00:13.8]}
30... Qe5 {[%clk 0:00:14.4]} 31. fxg6 {[%clk 0:00:12.8]} 31... fxg6 {[%clk
0:00:14.7]} 32. a4 {[%clk 0:00:11.9]} 32... c6 {[%clk 0:00:14.8]} 33. Ka2 {[%clk
0:00:12.2]} 33... Rf7 {[%clk 0:00:14.5]} 34. Qb6 {[%clk 0:00:08.9]} 34... Rf2
{[%clk 0:00:12]} 35. Qc7+ {[%clk 0:00:05.9]} 35... Kh6 {[%clk 0:00:11.7]} 36.
Qxc6 {[%clk 0:00:06.7]} 36... Ne3 {[%clk 0:00:10.1]} 37. Rc3 {[%clk 0:00:05.7]}
37... Nd5 {[%clk 0:00:09.6]} 38. Rc4 {[%clk 0:00:05.4]} 38... Rxc2+ {[%clk
0:00:09.2]} 39. Rxc2 {[%clk 0:00:06.3]} 39... Nb4+ {[%clk 0:00:09.4]} 40. Ka3
{[%clk 0:00:05.4]} 40... Nxc6 {[%clk 0:00:09.6]} 41. Rxc6 {[%clk 0:00:05.9]}
41... d5 {[%clk 0:00:09.1]} 42. Kb4 {[%clk 0:00:05.6]} 42... d4 {[%clk
0:00:09.3]} 43. Rc5 {[%clk 0:00:06.2]} 43... Qe4 {[%clk 0:00:08.9]} 44. Rc4
{[%clk 0:00:06.4]} 44... Qe3 {[%clk 0:00:09.2]} 45. a5 {[%clk 0:00:03.6]} 45...
d3 {[%clk 0:00:09.4]} 46. Rc3 {[%clk 0:00:04.3]} 46... Qd4+ {[%clk 0:00:08.8]}
47. Rc4 {[%clk 0:00:04.5]} 47... Qd6+ {[%clk 0:00:09]} 48. Kc3 {[%clk
0:00:04.6]} 48... d2 {[%clk 0:00:09.8]} 49. Rd4 {[%clk 0:00:05.5]} 49... Qxd4+
{[%clk 0:00:09.4]} 50. Kxd4 {[%clk 0:00:06.4]} 50... d1=Q+ {[%clk 0:00:09.7]}
51. Kc5 {[%clk 0:00:07.3]} 51... Qxb3 {[%clk 0:00:09]} 52. a6 {[%clk 0:00:07.5]}
52... Qa3+ {[%clk 0:00:09]} 53. Kb6 {[%clk 0:00:08.4]} 53... Qa2 {[%clk
0:00:08.5]} 54. a7 {[%clk 0:00:08.3]} 54... Qxg2 {[%clk 0:00:09]} 55. Ka6 {[%clk
0:00:09]} 55... h4 {[%clk 0:00:08.7]} 56. Kb6 {[%clk 0:00:09.9]} 56... h3 {[%clk
0:00:09.1]} 57. Kc7 {[%clk 0:00:10.7]} 57... h2 {[%clk 0:00:09.8]} 58. Kb8
{[%clk 0:00:11.3]} 58... h1=Q {[%clk 0:00:09.7]} 59. Kc7 {[%clk 0:00:12.2]}
59... Qb7+ {[%clk 0:00:09.1]} 60. Kd6 {[%clk 0:00:13.1]} 60... Qhd5# {[%clk
0:00:08.9]} 0-1

[Event "*** SCC Grand Prix: Titled Tuesday Blitz"]
[Site "Chess.com"]
[Date "2020.08.04"]
[Round "7"]
[White "LyonBeast"]
[Black "Hrant_ChessMood"]
[Result "1-0"]
[WhiteElo "3032"]
[BlackElo "2857"]
[TimeControl "180+1"]
[EndTime "15:01:57 PDT"]
[Termination "LyonBeast won on time"]

1. Nf3 {[%clk 0:03:00.9]} 1... Nf6 {[%clk 0:02:57.1]} 2. g3 {[%clk 0:03:00.8]}
2... d5 {[%clk 0:02:56.8]} 3. Bg2 {[%clk 0:03:00.5]} 3... g6 {[%clk 0:02:56.4]}
4. c4 {[%clk 0:02:57.9]} 4... Bg7 {[%clk 0:02:42.2]} 5. cxd5 {[%clk 0:02:57.6]}
5... Nxd5 {[%clk 0:02:43.1]} 6. d4 {[%clk 0:02:57.3]} 6... O-O {[%clk
0:02:42.3]} 7. O-O {[%clk 0:02:57.3]} 7... Nb6 {[%clk 0:02:42.3]} 8. Nc3 {[%clk
0:02:54]} 8... Nc6 {[%clk 0:02:41.9]} 9. e3 {[%clk 0:02:54.3]} 9... a5 {[%clk
0:02:35.9]} 10. Qe2 {[%clk 0:02:51.7]} 10... a4 {[%clk 0:02:31.8]} 11. Rd1
{[%clk 0:02:51.6]} 11... Nb4 {[%clk 0:02:19.9]} 12. e4 {[%clk 0:02:39.9]} 12...
Bg4 {[%clk 0:02:06.6]} 13. Be3 {[%clk 0:02:19.2]} 13... Qd7 {[%clk 0:01:56.4]}
14. Rac1 {[%clk 0:02:02.1]} 14... a3 {[%clk 0:01:50]} 15. b3 {[%clk 0:02:02.5]}
15... Ra5 {[%clk 0:01:41]} 16. d5 {[%clk 0:01:42.3]} 16... e6 {[%clk 0:01:26.3]}
17. h3 {[%clk 0:01:27.5]} 17... Bxf3 {[%clk 0:01:24.1]} 18. Bxf3 {[%clk
0:01:28.4]} 18... exd5 {[%clk 0:01:23.4]} 19. Nxd5 {[%clk 0:01:25.4]} 19...
N6xd5 {[%clk 0:01:18.1]} 20. exd5 {[%clk 0:01:26.3]} 20... Re8 {[%clk
0:00:57.6]} 21. Qd2 {[%clk 0:01:21.9]} 21... Qd6 {[%clk 0:00:56]} 22. Bf4 {[%clk
0:01:04]} 22... Be5 {[%clk 0:00:52.9]} 23. Re1 {[%clk 0:01:04]} 23... f6 {[%clk
0:00:41.8]} 24. Rc4 {[%clk 0:00:39.8]} 24... Rb5 {[%clk 0:00:38.1]} 25. Bxe5
{[%clk 0:00:39.8]} 25... Rxe5 {[%clk 0:00:37.7]} 26. Rxe5 {[%clk 0:00:39.5]}
26... fxe5 {[%clk 0:00:38.4]} 27. h4 {[%clk 0:00:34.9]} 27... Nxd5 {[%clk
0:00:31]} 28. h5 {[%clk 0:00:32.9]} 28... Nb6 {[%clk 0:00:23.8]} 29. Qc2 {[%clk
0:00:30.1]} 29... c6 {[%clk 0:00:17.1]} 30. Rg4 {[%clk 0:00:28.3]} 30... e4
{[%clk 0:00:13.1]} 31. Rxe4 {[%clk 0:00:25.3]} 31... Rc5 {[%clk 0:00:09.7]} 32.
Qe2 {[%clk 0:00:24.7]} 32... Nd5 {[%clk 0:00:04.7]} 33. Re8+ {[%clk 0:00:22]}
33... Kf7 {[%clk 0:00:04.9]} 34. Rh8 {[%clk 0:00:17.4]} 34... Nf6 {[%clk
0:00:05]} 35. hxg6+ {[%clk 0:00:15.2]} 35... hxg6 {[%clk 0:00:05.9]} 36. Kg2
{[%clk 0:00:13.9]} 36... Re5 {[%clk 0:00:05.9]} 37. Qc4+ {[%clk 0:00:13.1]}
37... Qe6 {[%clk 0:00:05]} 38. Qb4 {[%clk 0:00:11.6]} 38... Qe7 {[%clk
0:00:05.5]} 39. Qc4+ {[%clk 0:00:10.7]} 39... Kg7 {[%clk 0:00:05.9]} 40. Qh4
{[%clk 0:00:07.6]} 40... Nh5 {[%clk 0:00:03.6]} 41. Qxe7+ {[%clk 0:00:06.8]}
41... Rxe7 {[%clk 0:00:04.5]} 42. Ra8 {[%clk 0:00:07.4]} 42... Nf6 {[%clk
0:00:02.7]} 43. Rxa3 {[%clk 0:00:08]} 43... Nd7 {[%clk 0:00:03.2]} 44. Ra7
{[%clk 0:00:08.6]} 44... Ne5 {[%clk 0:00:03.9]} 45. Be4 {[%clk 0:00:08]} 45...
g5 {[%clk 0:00:04.2]} 46. f4 {[%clk 0:00:06.6]} 46... gxf4 {[%clk 0:00:05.1]}
47. gxf4 {[%clk 0:00:07.5]} 47... Ng6 {[%clk 0:00:02.2]} 48. Bxg6 {[%clk
0:00:07.7]} 48... Kxg6 {[%clk 0:00:03.1]} 49. Kf3 {[%clk 0:00:08.4]} 49... Kf5
{[%clk 0:00:03.2]} 50. Ra5+ {[%clk 0:00:08.6]} 50... b5 {[%clk 0:00:03.5]} 51.
Ra6 {[%clk 0:00:08.1]} 51... Re4 {[%clk 0:00:03.8]} 52. Rxc6 {[%clk 0:00:08.2]}
52... Rxf4+ {[%clk 0:00:04.3]} 53. Ke3 {[%clk 0:00:08.8]} 53... Re4+ {[%clk
0:00:02.1]} 54. Kd3 {[%clk 0:00:09.3]} 54... Re5 {[%clk 0:00:01.5]} 55. Kd4
{[%clk 0:00:09.6]} 1-0

[Event "*** SCC Grand Prix: Titled Tuesday Blitz"]
[Site "Chess.com"]
[Date "2020.08.04"]
[Round "7"]
[White "Zurability"]
[Black "Alberquintin"]
[Result "0-1"]
[WhiteElo "2658"]
[BlackElo "2485"]
[TimeControl "180+1"]
[EndTime "15:01:57 PDT"]
[Termination "Alberquintin won by checkmate"]

1. Nf3 {[%clk 0:02:54]} 1... Nf6 {[%clk 0:03:00]} 2. d4 {[%clk 0:02:53.2]} 2...
g6 {[%clk 0:03:00.1]} 3. c4 {[%clk 0:02:53.3]} 3... Bg7 {[%clk 0:03:00.6]} 4.
Nc3 {[%clk 0:02:54]} 4... d6 {[%clk 0:03:01]} 5. e4 {[%clk 0:02:54.4]} 5... O-O
{[%clk 0:03:01.5]} 6. Be2 {[%clk 0:02:54.8]} 6... Bg4 {[%clk 0:03:01.7]} 7. h3
{[%clk 0:02:45.5]} 7... Bxf3 {[%clk 0:03:01.7]} 8. Bxf3 {[%clk 0:02:46.4]} 8...
Nfd7 {[%clk 0:03:02.2]} 9. Be2 {[%clk 0:02:41.6]} 9... Nc6 {[%clk 0:03:01.9]}
10. d5 {[%clk 0:02:41]} 10... Nd4 {[%clk 0:03:02.3]} 11. Bd3 {[%clk 0:02:36.7]}
11... c5 {[%clk 0:03:01.1]} 12. dxc6 {[%clk 0:02:34]} 12... bxc6 {[%clk
0:03:00.7]} 13. O-O {[%clk 0:02:28.5]} 13... Rb8 {[%clk 0:02:52.9]} 14. Re1
{[%clk 0:02:24.2]} 14... Qa5 {[%clk 0:02:40.6]} 15. Bf1 {[%clk 0:02:18]} 15...
c5 {[%clk 0:02:31.9]} 16. Rb1 {[%clk 0:01:52.8]} 16... Ne5 {[%clk 0:02:23.1]}
17. Bd2 {[%clk 0:01:45.8]} 17... Qd8 {[%clk 0:02:23]} 18. f4 {[%clk 0:01:43.6]}
18... Nec6 {[%clk 0:02:23.2]} 19. b3 {[%clk 0:01:39.2]} 19... e6 {[%clk
0:02:16.8]} 20. Be3 {[%clk 0:01:31.2]} 20... Qh4 {[%clk 0:02:06.4]} 21. Qd2
{[%clk 0:01:19.4]} 21... Qg3 {[%clk 0:01:54.4]} 22. Kh1 {[%clk 0:01:12.4]} 22...
Qh4 {[%clk 0:01:41.4]} 23. Bf2 {[%clk 0:01:00.9]} 23... Qe7 {[%clk 0:01:28.2]}
24. Rbd1 {[%clk 0:00:35.4]} 24... a6 {[%clk 0:01:26.6]} 25. Bd3 {[%clk
0:00:32.7]} 25... Rfd8 {[%clk 0:01:19.6]} 26. Bb1 {[%clk 0:00:29.1]} 26... Re8
{[%clk 0:01:12.8]} 27. f5 {[%clk 0:00:25.5]} 27... Be5 {[%clk 0:01:08.6]} 28.
Be3 {[%clk 0:00:21.3]} 28... Qh4 {[%clk 0:01:00.6]} 29. Rf1 {[%clk 0:00:20.6]}
29... Qg3 {[%clk 0:00:59]} 30. Bf4 {[%clk 0:00:20.9]} 30... Bxf4 {[%clk
0:00:59.2]} 31. Rxf4 {[%clk 0:00:21.8]} 31... Ne5 {[%clk 0:00:54.1]} 32. Rdf1
{[%clk 0:00:21.4]} 32... Rf8 {[%clk 0:00:45.8]} 33. f6 {[%clk 0:00:20.5]} 33...
Kh8 {[%clk 0:00:36.4]} 34. R4f2 {[%clk 0:00:19.3]} 34... Qh4 {[%clk 0:00:30.4]}
35. Nd1 {[%clk 0:00:17.8]} 35... h5 {[%clk 0:00:22.5]} 36. Ne3 {[%clk
0:00:13.1]} 36... Kh7 {[%clk 0:00:21.1]} 37. Rf4 {[%clk 0:00:08.6]} 37... Qg3
{[%clk 0:00:17.9]} 38. R1f2 {[%clk 0:00:07.8]} 38... a5 {[%clk 0:00:16.4]} 39.
h4 {[%clk 0:00:04.8]} 39... Ng4 {[%clk 0:00:13.2]} 40. Nxg4 {[%clk 0:00:03.5]}
40... hxg4 {[%clk 0:00:13.7]} 41. Kg1 {[%clk 0:00:03.2]} 41... Qxh4 {[%clk
0:00:13.1]} 42. Qd1 {[%clk 0:00:02.5]} 42... Nf3+ {[%clk 0:00:07.6]} 43. gxf3
{[%clk 0:00:01.9]} 43... Qg3+ {[%clk 0:00:07.7]} 44. Kf1 {[%clk 0:00:01.3]}
44... Qxf4 {[%clk 0:00:07.2]} 45. Ke2 {[%clk 0:00:02.1]} 45... g3 {[%clk
0:00:06.9]} 46. Rg2 {[%clk 0:00:02.2]} 46... Rh8 {[%clk 0:00:06.5]} 47. Qh1+
{[%clk 0:00:02.8]} 47... Kg8 {[%clk 0:00:07]} 48. Qg1 {[%clk 0:00:03.3]} 48...
a4 {[%clk 0:00:06]} 49. Rxg3 {[%clk 0:00:03.6]} 49... Kf8 {[%clk 0:00:05.2]} 50.
Qd1 {[%clk 0:00:02.1]} 50... axb3 {[%clk 0:00:05.1]} 51. Rg2 {[%clk 0:00:02.5]}
51... bxa2 {[%clk 0:00:04.7]} 52. Bxa2 {[%clk 0:00:02.8]} 52... Rb2+ {[%clk
0:00:04.9]} 53. Kf1 {[%clk 0:00:03.1]} 53... Rh1+ {[%clk 0:00:05.1]} 54. Rg1
{[%clk 0:00:02.8]} 54... Rxg1+ {[%clk 0:00:05.3]} 55. Kxg1 {[%clk 0:00:02.8]}
55... Qg3+ {[%clk 0:00:05.8]} 56. Kf1 {[%clk 0:00:02.3]} 56... Qf2# {[%clk
0:00:06.1]} 0-1